fUSD/lending_fUSD_20260607
["ID","MTS","AMOUNT","RATE_DAILY","PERIOD"]
[424361083,1780783832000,-500.0,0.00013698,2]
[424361112,1780783832000,-500.0,0.00013698,2]
[424361073,1780783832000,-500.0,0.00013698,2]
[424361084,1780783832000,-500.0,0.00013698,2]
[424361058,1780783832000,-500.0,0.00013698,2]
[424361050,1780783832000,-456.0,0.00013498,2]
[424361051,1780783832000,-451.0,0.00013498,2]
[424361052,1780783832000,-452.0,0.00013498,2]
[424361053,1780783832000,-446.0,0.00013498,2]
[424361055,1780783832000,-5997.7219,0.00013498,2]
[424361054,1780783832000,-33261.1868,0.00013498,2]
[424361056,1780783832000,-215.80795776,0.00013573,2]
[424361057,1780783832000,-387.30936458,0.00013661,2]
[424361060,1780783832000,-500.0,0.00013698,2]
[424361068,1780783832000,-500.0,0.00013698,2]
[424361069,1780783832000,-500.0,0.00013698,2]
[424361059,1780783832000,-500.0,0.00013698,2]
[424361070,1780783832000,-511.49905522,0.00013698,2]
[424361049,1780783832000,-448.0,0.00013498,2]
[424361061,1780783832000,-502.42853377,0.00013698,2]
[424361071,1780783832000,-500.0,0.00013698,2]
[424361076,1780783832000,-500.0,0.00013698,2]
[424361077,1780783832000,-500.0,0.00013698,2]
[424361078,1780783832000,-500.0,0.00013698,2]
[424361079,1780783832000,-500.0,0.00013698,2]
[424361074,1780783832000,-500.0,0.00013698,2]
[424361075,1780783832000,-500.0,0.00013698,2]
[424361064,1780783832000,-500.0,0.00013698,2]
[424361065,1780783832000,-500.0,0.00013698,2]
[424361066,1780783832000,-500.0,0.00013698,2]
[424361067,1780783832000,-500.0,0.00013698,2]
[424361063,1780783832000,-500.0,0.00013698,2]
[424361062,1780783832000,-500.0,0.00013698,2]
[424361072,1780783832000,-500.0,0.00013698,2]
[424361154,1780783833000,-500.0,0.00013698,2]
[424361160,1780783833000,-2500.0,0.00013699,2]
[424361159,1780783833000,-166.66,0.00013699,2]
[424361153,1780783833000,-500.0,0.00013698,2]
[424361156,1780783833000,-500.0,0.00013698,2]
[424361145,1780783833000,-500.0,0.00013698,2]
[424361150,1780783833000,-500.0,0.00013698,2]
[424361158,1780783833000,-200.0,0.00013699,2]
[424361152,1780783833000,-500.0,0.00013698,2]
[424361151,1780783833000,-500.0,0.00013698,2]
[424361149,1780783833000,-500.0,0.00013698,2]
[424361155,1780783833000,-500.0,0.00013698,2]
[424361157,1780783833000,-500.0,0.00013698,2]
[424361164,1780783833000,-230.58356904,0.00013707,2]
[424361162,1780783833000,-2132.03,0.00013699,2]
[424361173,1780783833000,-414.84618563,0.000142,2]
[424361161,1780783833000,-70313.35,0.00013699,2]
[424361163,1780783833000,-163.66,0.000137,2]
[424361165,1780783833000,-166.66,0.00013753,2]
[424361170,1780783833000,-2000.0,0.00014052,2]
[424361166,1780783833000,-166.66,0.00013836,2]
[424361167,1780783833000,-250.0,0.0001388,2]
[424361171,1780783833000,-166.66,0.0001411,2]
[424361168,1780783833000,-450.0,0.00013908,2]
[424361169,1780783833000,-166.66,0.00013973,2]
[424361176,1780783833000,-500.0,0.00014329,2]
[424361174,1780783833000,-166.66,0.00014207,2]
[424361142,1780783833000,-500.0,0.00013698,2]
[424361172,1780783833000,-255.0,0.00014134,2]
[424361144,1780783833000,-500.0,0.00013698,2]
[424361127,1780783833000,-500.0,0.00013698,2]
[424361147,1780783833000,-500.0,0.00013698,2]
[424361121,1780783833000,-500.0,0.00013698,2]
[424361122,1780783833000,-500.0,0.00013698,2]
[424361123,1780783833000,-500.0,0.00013698,2]
[424361117,1780783833000,-500.0,0.00013698,2]
[424361114,1780783833000,-500.0,0.00013698,2]
[424361124,1780783833000,-500.0,0.00013698,2]
[424361115,1780783833000,-500.0,0.00013698,2]
[424361116,1780783833000,-500.0,0.00013698,2]
[424361118,1780783833000,-500.0,0.00013698,2]
[424361119,1780783833000,-500.0,0.00013698,2]
[424361120,1780783833000,-500.0,0.00013698,2]
[424361125,1780783833000,-500.0,0.00013698,2]
[424361130,1780783833000,-500.0,0.00013698,2]
[424361128,1780783833000,-500.0,0.00013698,2]
[424361126,1780783833000,-500.0,0.00013698,2]
[424361136,1780783833000,-500.0,0.00013698,2]
[424361133,1780783833000,-500.0,0.00013698,2]
[424361132,1780783833000,-500.0,0.00013698,2]
[424361134,1780783833000,-500.0,0.00013698,2]
[424361129,1780783833000,-500.0,0.00013698,2]
[424361131,1780783833000,-500.0,0.00013698,2]
[424361135,1780783833000,-500.0,0.00013698,2]
[424361138,1780783833000,-500.0,0.00013698,2]
[424361148,1780783833000,-500.0,0.00013698,2]
[424361137,1780783833000,-500.0,0.00013698,2]
[424361143,1780783833000,-500.0,0.00013698,2]
[424361177,1780783833000,-166.66,0.00014384,2]
[424361139,1780783833000,-500.0,0.00013698,2]
[424361141,1780783833000,-500.0,0.00013698,2]
[424361146,1780783833000,-500.0,0.00013698,2]
[424361182,1780783833000,-459.0,0.00014818,2]
[424361140,1780783833000,-500.0,0.00013698,2]
[424361175,1780783833000,-166.66,0.00014247,2]
[424361207,1780783833000,-2569.26,0.00014999,2]
[424361215,1780783833000,-2569.49781194,0.00014999,2]
[424361214,1780783833000,-2569.26,0.00014999,2]
[424361217,1780783833000,-256.27,0.00015,2]
[424361227,1780783833000,-2423.91,0.00015434,2]
[424361229,1780783833000,-901.07480036,0.000155,2]
[424361228,1780783833000,-1015.37688362,0.000155,2]
[424361224,1780783833000,-433.0,0.00015333,2]
[424361222,1780783833000,-1015.37688362,0.000153,2]
[424361223,1780783833000,-901.07480036,0.000153,2]
[424361216,1780783833000,-1015.37688362,0.00015,2]
[424361219,1780783833000,-166.66,0.00015115,2]
[424361221,1780783833000,-901.07480036,0.000152,2]
[424361220,1780783833000,-1015.37688362,0.000152,2]
[424361225,1780783833000,-1068.11,0.00015368,2]
[424361226,1780783833000,-1555.5,0.00015368,2]
[424361230,1780783833000,-166.66,0.00015569,2]
[424361232,1780783833000,-901.07480036,0.000156,2]
[424361231,1780783833000,-1015.37688362,0.000156,2]
[424361241,1780783833000,-2891.52061691,0.00016177,2]
[424361233,1780783833000,-2000.0,0.00015614,2]
[424361234,1780783833000,-1015.37688362,0.000158,2]
[424361237,1780783833000,-1613.0535,0.00015916,2]
[424361238,1780783833000,-166.66,0.00016023,2]
[424361235,1780783833000,-1015.37688362,0.000159,2]
[424361240,1780783833000,-2237.94,0.00016116,2]
[424361239,1780783833000,-1015.37688362,0.000161,2]
[424361236,1780783833000,-1107.63007,0.00015916,2]
[424361179,1780783833000,-500.0,0.00014799,2]
[424361211,1780783833000,-2569.26,0.00014999,2]
[424361212,1780783833000,-2569.26,0.00014999,2]
[424361218,1780783833000,-901.07480036,0.00015,2]
[424361213,1780783833000,-2569.26,0.00014999,2]
[424361202,1780783833000,-2569.26,0.00014999,2]
[424361178,1780783833000,-166.66,0.00014661,2]
[424361180,1780783833000,-500.0,0.00014799,2]
[424361186,1780783833000,-10000.0,0.00014899,2]
[424361183,1780783833000,-1030.0,0.0001482,2]
[424361184,1780783833000,-1500.0,0.0001482,2]
[424361185,1780783833000,-490.28,0.00014869,2]
[424361188,1780783833000,-500.0,0.00014998,2]
[424361196,1780783833000,-500.0,0.00014999,2]
[424361197,1780783833000,-500.0,0.00014999,2]
[424361198,1780783833000,-500.0,0.00014999,2]
[424361200,1780783833000,-2569.26,0.00014999,2]
[424361187,1780783833000,-500.0,0.00014998,2]
[424361199,1780783833000,-165.54631724,0.00014999,2]
[424361189,1780783833000,-2569.26,0.00014998,2]
[424361181,1780783833000,-2569.26,0.00014799,2]
[424361209,1780783833000,-2569.26,0.00014999,2]
[424361195,1780783833000,-500.0,0.00014999,2]
[424361193,1780783833000,-465.2,0.00014999,2]
[424361192,1780783833000,-500.0,0.00014999,2]
[424361190,1780783833000,-500.0,0.00014999,2]
[424361194,1780783833000,-500.0,0.00014999,2]
[424361201,1780783833000,-2569.26,0.00014999,2]
[424361208,1780783833000,-2569.26,0.00014999,2]
[424361203,1780783833000,-2569.26,0.00014999,2]
[424361191,1780783833000,-500.0,0.00014999,2]
[424361205,1780783833000,-2569.26,0.00014999,2]
[424361206,1780783833000,-2569.26,0.00014999,2]
[424361204,1780783833000,-2569.26,0.00014999,2]
[424361210,1780783833000,-2569.26,0.00014999,2]
[424361285,1780783834000,-500.0,0.0001944,2]
[424361286,1780783834000,-500.0,0.0001944,2]
[424361272,1780783834000,-266.83171117,0.000185,2]
[424361282,1780783834000,-2005.9555727,0.00019204,2]
[424361288,1780783834000,-500.0,0.0001944,2]
[424361283,1780783834000,-260.95,0.00019382,2]
[424361273,1780783834000,-475.50046061,0.000185,2]
[424361281,1780783834000,-481.0,0.00019,2]
[424361277,1780783834000,-475.50046061,0.000187,2]
[424361276,1780783834000,-266.83171117,0.000187,2]
[424361274,1780783834000,-9999.99,0.00018533,2]
[424361275,1780783834000,-1934.38338736,0.00018656,2]
[424361287,1780783834000,-500.0,0.0001944,2]
[424361284,1780783834000,-500.0,0.0001944,2]
[424361289,1780783834000,-500.0,0.0001944,2]
[424361302,1780783834000,-151.0,0.00019752,2]
[424361294,1780783834000,-247.366,0.00019513,2]
[424361292,1780783834000,-500.0,0.0001944,2]
[424361291,1780783834000,-500.0,0.0001944,2]
[424361293,1780783834000,-500.0,0.00019512,2]
[424361296,1780783834000,-382.0,0.00019513,2]
[424361301,1780783834000,-151.0,0.00019752,2]
[424361300,1780783834000,-933.0,0.00019513,2]
[424361295,1780783834000,-1358.0,0.00019513,2]
[424361298,1780783834000,-1227.0,0.00019513,2]
[424361297,1780783834000,-1274.0,0.00019513,2]
[424361303,1780783834000,-151.0,0.00019752,2]
[424361299,1780783834000,-6073.0,0.00019513,2]
[424361304,1780783834000,-151.0,0.00019752,2]
[424361290,1780783834000,-500.0,0.0001944,2]
[424361270,1780783834000,-238.6,0.0001841,2]
[424361243,1780783834000,-1015.37688362,0.000164,2]
[424361269,1780783834000,-475.50046061,0.000184,2]
[424361305,1780783834000,-151.0,0.00019752,2]
[424361253,1780783834000,-177.767079,0.00016832,2]
[424361251,1780783834000,-187.58631908,0.0001679,2]
[424361252,1780783834000,-210.351638,0.00016832,2]
[424361254,1780783834000,-159.1959413,0.00016971,2]
[424361245,1780783834000,-458.0,0.00016438,2]
[424361242,1780783834000,-1015.37688362,0.000162,2]
[424361244,1780783834000,-238.6,0.00016438,2]
[424361247,1780783834000,-1148.61238259,0.00016464,2]
[424361248,1780783834000,-1672.7364795,0.00016464,2]
[424361249,1780783834000,-736.0,0.00016635,2]
[424361246,1780783834000,-443.0,0.00016438,2]
[424361250,1780783834000,-168.17,0.00016712,2]
[424361255,1780783834000,-1030.66150801,0.00017012,2]
[424361267,1780783834000,-475.50046061,0.000182,2]
[424361257,1780783834000,-178.99596461,0.00017147,2]
[424361263,1780783834000,-260.95,0.00018029,2]
[424361258,1780783834000,-2000.0,0.00017175,2]
[424361259,1780783834000,-1798.80895522,0.0001756,2]
[424361256,1780783834000,-1734.62772924,0.00017012,2]
[424361260,1780783834000,-266.83171117,0.00018,2]
[424361262,1780783834000,-475.50046061,0.00018,2]
[424361265,1780783834000,-1865.36488656,0.00018108,2]
[424361264,1780783834000,-923.0,0.00018055,2]
[424361266,1780783834000,-266.83171117,0.000182,2]
[424361268,1780783834000,-266.83171117,0.000184,2]
[424361279,1780783834000,-260.95,0.00018931,2]
[424361280,1780783834000,-2891.52061691,0.00018956,2]
[424361278,1780783834000,-2000.0,0.00018736,2]
[424361271,1780783834000,-260.95,0.0001848,2]
[424361261,1780783834000,-255.5519539,0.00018,2]
[424361308,1780783834000,-151.0,0.00019752,2]
[424361306,1780783834000,-151.0,0.00019752,2]
[424361370,1780783834000,-200.0,0.00021918,2]
[424361342,1780783834000,-150.0,0.00020931,2]
[424361341,1780783834000,-150.0,0.00020931,2]
[424361345,1780783834000,-251.0,0.00021,2]
[424361347,1780783834000,-158.0,0.00021,2]
[424361348,1780783834000,-672.0,0.00021,2]
[424361346,1780783834000,-234.0,0.00021,2]
[424361349,1780783834000,-513.0,0.00021,2]
[424361351,1780783834000,-152.0,0.00021,2]
[424361362,1780783834000,-555.13820666,0.00021327,2]
[424361363,1780783834000,-472.99662081,0.000214,2]
[424361361,1780783834000,-500.0,0.00021327,2]
[424361352,1780783834000,-467.0,0.00021,2]
[424361357,1780783834000,-315.0,0.00021,2]
[424361354,1780783834000,-173.0,0.00021,2]
[424361344,1780783834000,-472.99662081,0.00021,2]
[424361358,1780783834000,-472.99662081,0.000212,2]
[424361360,1780783834000,-555.13820666,0.00021291,2]
[424361355,1780783834000,-484.0,0.00021,2]
[424361356,1780783834000,-481.0,0.00021,2]
[424361359,1780783834000,-163.66,0.000212,2]
[424361366,1780783834000,-555.13820666,0.00021814,2]
[424361364,1780783834000,-472.99662081,0.000216,2]
[424361365,1780783834000,-2891.52061691,0.00021735,2]
[424361373,1780783834000,-234.0,0.00022,2]
[424361368,1780783834000,-472.99662081,0.000219,2]
[424361369,1780783834000,-5000.0,0.00021918,2]
[424361372,1780783834000,-251.0,0.00022,2]
[424361307,1780783834000,-151.0,0.00019752,2]
[424361367,1780783834000,-200.0,0.00021825,2]
[424361371,1780783834000,-1820.08,0.00022,2]
[424361353,1780783834000,-155.0,0.00021,2]
[424361343,1780783834000,-555.13820666,0.00020969,2]
[424361350,1780783834000,-218.0,0.00021,2]
[424361339,1780783834000,-2236.95670847,0.00020848,2]
[424361319,1780783834000,-234.0,0.0002,2]
[424361340,1780783834000,-555.13820666,0.00020898,2]
[424361318,1780783834000,-251.0,0.0002,2]
[424361320,1780783834000,-158.0,0.0002,2]
[424361322,1780783834000,-513.0,0.0002,2]
[424361321,1780783834000,-672.0,0.0002,2]
[424361309,1780783834000,-151.0,0.00019752,2]
[424361311,1780783834000,-2080.17592889,0.00019752,2]
[424361314,1780783834000,-151.0,0.00019752,2]
[424361312,1780783834000,-151.0,0.00019752,2]
[424361315,1780783834000,-260.95,0.00019832,2]
[424361313,1780783834000,-151.0,0.00019752,2]
[424361316,1780783834000,-378.0,0.00019876,2]
[424361317,1780783834000,-378.0,0.00019906,2]
[424361324,1780783834000,-152.0,0.0002,2]
[424361310,1780783834000,-151.0,0.00019752,2]
[424361334,1780783834000,-2157.14243826,0.000203,2]
[424361333,1780783834000,-378.0,0.00020146,2]
[424361337,1780783834000,-150.0,0.000207,10]
[424361331,1780783834000,-391.57607559,0.00020091,2]
[424361332,1780783834000,-378.0,0.00020127,2]
[424361329,1780783834000,-481.0,0.0002,2]
[424361325,1780783834000,-467.0,0.0002,2]
[424361330,1780783834000,-315.0,0.0002,2]
[424361338,1780783834000,-490.28,0.00020817,2]
[424361326,1780783834000,-155.0,0.0002,2]
[424361327,1780783834000,-173.0,0.0002,2]
[424361328,1780783834000,-484.0,0.0002,2]
[424361336,1780783834000,-159.1959413,0.00020544,2]
[424361335,1780783834000,-238.6,0.00020381,2]
[424361323,1780783834000,-218.0,0.0002,2]
[424361417,1780783835000,-218.0,0.00024,2]
[424361418,1780783835000,-467.0,0.00024,2]
[424361415,1780783835000,-672.0,0.00024,2]
[424361410,1780783835000,-151.33,0.00023497,2]
[424361409,1780783835000,-200.0,0.00023221,2]
[424361414,1780783835000,-158.0,0.00024,2]
[424361408,1780783835000,-315.0,0.00023,2]
[424361405,1780783835000,-173.0,0.00023,2]
[424361404,1780783835000,-155.0,0.00023,2]
[424361406,1780783835000,-484.0,0.00023,2]
[424361424,1780783835000,-315.0,0.000241,2]
[424361413,1780783835000,-234.0,0.00024,2]
[424361407,1780783835000,-481.0,0.00023,2]
[424361416,1780783835000,-513.0,0.00024,2]
[424361421,1780783835000,-484.0,0.00024,2]
[424361425,1780783835000,-443.0,0.000241,2]
[424361427,1780783835000,-238.6,0.00024324,2]
[424361419,1780783835000,-155.0,0.00024,2]
[424361423,1780783835000,-315.0,0.00024,2]
[424361422,1780783835000,-494.48872826,0.00024,2]
[424361439,1780783835000,-486.0,0.00025,2]
[424361429,1780783835000,-1000.0,0.00024658,2]
[424361440,1780783835000,-170.0,0.00025,2]
[424361432,1780783835000,-200.0,0.00024761,2]
[424361430,1780783835000,-690.53,0.00024658,2]
[424361431,1780783835000,-692.32,0.00024658,2]
[424361428,1780783835000,-2891.52061691,0.00024514,2]
[424361412,1780783835000,-251.0,0.00024,2]
[424361426,1780783835000,-159.1959413,0.00024117,2]
[424361402,1780783835000,-153.0,0.00023,2]
[424361438,1780783835000,-219.0,0.00025,2]
[424361411,1780783835000,-200.0,0.00023991,2]
[424361375,1780783835000,-672.0,0.00022,2]
[424361374,1780783835000,-158.0,0.00022,2]
[424361377,1780783835000,-218.0,0.00022,2]
[424361383,1780783835000,-481.0,0.00022,2]
[424361384,1780783835000,-315.0,0.00022,2]
[424361385,1780783835000,-1125.0,0.00022131,2]
[424361386,1780783835000,-4046.0,0.00022185,5]
[424361388,1780783835000,-238.6,0.00022353,2]
[424361387,1780783835000,-3239.0,0.00022185,5]
[424361380,1780783835000,-155.0,0.00022,2]
[424361381,1780783835000,-173.0,0.00022,2]
[424361382,1780783835000,-484.0,0.00022,2]
[424361379,1780783835000,-467.0,0.00022,2]
[424361403,1780783835000,-467.0,0.00023,2]
[424361376,1780783835000,-513.0,0.00022,2]
[424361389,1780783835000,-200.0,0.00022451,2]
[424361392,1780783835000,-382.0,0.00022513,2]
[424361397,1780783835000,-234.0,0.00023,2]
[424361391,1780783835000,-1358.0,0.00022513,2]
[424361396,1780783835000,-251.0,0.00023,2]
[424361390,1780783835000,-150.0,0.00022513,2]
[424361394,1780783835000,-1227.0,0.00022513,2]
[424361393,1780783835000,-1274.0,0.00022513,2]
[424361395,1780783835000,-6073.0,0.00022513,2]
[424361399,1780783835000,-672.0,0.00023,2]
[424361398,1780783835000,-158.0,0.00023,2]
[424361400,1780783835000,-513.0,0.00023,2]
[424361401,1780783835000,-218.0,0.00023,2]
[424361378,1780783835000,-152.0,0.00022,2]
[424361436,1780783835000,-672.0,0.00025,2]
[424361420,1780783835000,-173.0,0.00024,2]
[424361435,1780783835000,-176.0,0.00025,2]
[424361472,1780783835000,-500.0,0.00026147,2]
[424361471,1780783835000,-500.0,0.00026147,2]
[424361473,1780783835000,-500.0,0.00026147,2]
[424361475,1780783835000,-500.0,0.00026147,2]
[424361467,1780783835000,-500.0,0.00026147,2]
[424361474,1780783835000,-500.0,0.00026147,2]
[424361469,1780783835000,-500.0,0.00026147,2]
[424361479,1780783835000,-500.0,0.00026147,2]
[424361489,1780783835000,-500.0,0.00026147,2]
[424361480,1780783835000,-500.0,0.00026147,2]
[424361490,1780783835000,-500.0,0.00026147,2]
[424361482,1780783835000,-500.0,0.00026147,2]
[424361478,1780783835000,-500.0,0.00026147,2]
[424361465,1780783835000,-500.0,0.00026147,2]
[424361481,1780783835000,-500.0,0.00026147,2]
[424361483,1780783835000,-500.0,0.00026147,2]
[424361485,1780783835000,-500.0,0.00026147,2]
[424361487,1780783835000,-500.0,0.00026147,2]
[424361488,1780783835000,-500.0,0.00026147,2]
[424361491,1780783835000,-500.0,0.00026147,2]
[424361492,1780783835000,-500.0,0.00026147,2]
[424361493,1780783835000,-500.0,0.00026147,2]
[424361498,1780783835000,-500.0,0.00026147,2]
[424361497,1780783835000,-500.0,0.00026147,2]
[424361494,1780783835000,-500.0,0.00026147,2]
[424361495,1780783835000,-500.0,0.00026147,2]
[424361499,1780783835000,-500.0,0.00026147,2]
[424361433,1780783835000,-264.0,0.00025,2]
[424361484,1780783835000,-500.0,0.00026147,2]
[424361470,1780783835000,-500.0,0.00026147,2]
[424361486,1780783835000,-500.0,0.00026147,2]
[424361476,1780783835000,-500.0,0.00026147,2]
[424361468,1780783835000,-500.0,0.00026147,2]
[424361437,1780783835000,-522.0,0.00025,2]
[424361434,1780783835000,-251.0,0.00025,2]
[424361444,1780783835000,-164.68,0.00025,2]
[424361441,1780783835000,-178.0,0.00025,2]
[424361442,1780783835000,-485.0,0.00025,2]
[424361452,1780783835000,-150.0,0.00025513,2]
[424361446,1780783835000,-164.68,0.00025,2]
[424361445,1780783835000,-164.68,0.00025,2]
[424361447,1780783835000,-164.68,0.00025,2]
[424361496,1780783835000,-500.0,0.00026147,2]
[424361448,1780783835000,-164.68,0.00025,2]
[424361451,1780783835000,-164.68,0.00025,2]
[424361449,1780783835000,-164.68,0.00025,2]
[424361443,1780783835000,-315.0,0.00025,2]
[424361454,1780783835000,-382.0,0.00025513,2]
[424361477,1780783835000,-500.0,0.00026147,2]
[424361450,1780783835000,-164.68,0.00025,2]
[424361466,1780783835000,-500.0,0.00026147,2]
[424361459,1780783835000,-216.98172761,0.00025667,3]
[424361462,1780783835000,-928.0,0.00026147,2]
[424361457,1780783835000,-6073.0,0.00025513,2]
[424361458,1780783835000,-200.0,0.00025531,2]
[424361461,1780783835000,-500.0,0.00026147,2]
[424361460,1780783835000,-250.0,0.00025667,2]
[424361456,1780783835000,-1227.0,0.00025513,2]
[424361455,1780783835000,-1274.0,0.00025513,2]
[424361464,1780783835000,-500.0,0.00026147,2]
[424361463,1780783835000,-500.0,0.00026147,2]
[424361453,1780783835000,-1358.0,0.00025513,2]
[424361519,1780783836000,-500.0,0.00026147,2]
[424361523,1780783836000,-500.0,0.00026147,2]
[424361524,1780783836000,-500.0,0.00026147,2]
[424361520,1780783836000,-500.0,0.00026147,2]
[424361516,1780783836000,-500.0,0.00026147,2]
[424361526,1780783836000,-500.0,0.00026147,2]
[424361518,1780783836000,-500.0,0.00026147,2]
[424361521,1780783836000,-500.0,0.00026147,2]
[424361542,1780783836000,-500.0,0.00026147,2]
[424361525,1780783836000,-500.0,0.00026147,2]
[424361531,1780783836000,-500.0,0.00026147,2]
[424361541,1780783836000,-500.0,0.00026147,2]
[424361540,1780783836000,-500.0,0.00026147,2]
[424361532,1780783836000,-500.0,0.00026147,2]
[424361529,1780783836000,-500.0,0.00026147,2]
[424361530,1780783836000,-500.0,0.00026147,2]
[424361522,1780783836000,-500.0,0.00026147,2]
[424361528,1780783836000,-500.0,0.00026147,2]
[424361500,1780783836000,-500.0,0.00026147,2]
[424361517,1780783836000,-500.0,0.00026147,2]
[424361533,1780783836000,-500.0,0.00026147,2]
[424361503,1780783836000,-500.0,0.00026147,2]
[424361502,1780783836000,-500.0,0.00026147,2]
[424361501,1780783836000,-500.0,0.00026147,2]
[424361505,1780783836000,-500.0,0.00026147,2]
[424361513,1780783836000,-500.0,0.00026147,2]
[424361506,1780783836000,-500.0,0.00026147,2]
[424361527,1780783836000,-500.0,0.00026147,2]
[424361515,1780783836000,-500.0,0.00026147,2]
[424361514,1780783836000,-500.0,0.00026147,2]
[424361508,1780783836000,-500.0,0.00026147,2]
[424361512,1780783836000,-500.0,0.00026147,2]
[424361507,1780783836000,-500.0,0.00026147,2]
[424361510,1780783836000,-500.0,0.00026147,2]
[424361509,1780783836000,-500.0,0.00026147,2]
[424361511,1780783836000,-500.0,0.00026147,2]
[424361504,1780783836000,-500.0,0.00026147,2]
[424361535,1780783836000,-500.0,0.00026147,2]
[424361565,1780783836000,-859.0,0.00026147,2]
[424361536,1780783836000,-500.0,0.00026147,2]
[424361557,1780783836000,-500.0,0.00026147,2]
[424361559,1780783836000,-500.0,0.00026147,2]
[424361561,1780783836000,-500.0,0.00026147,2]
[424361563,1780783836000,-592.0,0.00026147,2]
[424361560,1780783836000,-500.0,0.00026147,2]
[424361562,1780783836000,-500.0,0.00026147,2]
[424361566,1780783836000,-194.65448507,0.0002618,3]
[424361534,1780783836000,-500.0,0.00026147,2]
[424361567,1780783836000,-238.6,0.00026296,2]
[424361571,1780783836000,-522.0,0.00027137,2]
[424361572,1780783836000,-2891.52061691,0.00027293,2]
[424361573,1780783836000,-72.14982936,0.00027397,2]
[424361575,1780783836000,-269.43592774,0.00027397,2]
[424361574,1780783836000,-123.27001244,0.00027397,2]
[424361576,1780783836000,-305.87152824,0.00027397,2]
[424361577,1780783836000,-367.5852002,0.00027397,2]
[424361564,1780783836000,-658.0,0.00026147,2]
[424361568,1780783836000,-200.0,0.00026301,2]
[424361570,1780783836000,-200.0,0.00027072,2]
[424361558,1780783836000,-500.0,0.00026147,2]
[424361539,1780783836000,-500.0,0.00026147,2]
[424361538,1780783836000,-500.0,0.00026147,2]
[424361537,1780783836000,-500.0,0.00026147,2]
[424361545,1780783836000,-500.0,0.00026147,2]
[424361543,1780783836000,-500.0,0.00026147,2]
[424361547,1780783836000,-500.0,0.00026147,2]
[424361546,1780783836000,-500.0,0.00026147,2]
[424361569,1780783836000,-172.32724253,0.00026693,3]
[424361553,1780783836000,-500.0,0.00026147,2]
[424361548,1780783836000,-500.0,0.00026147,2]
[424361550,1780783836000,-500.0,0.00026147,2]
[424361551,1780783836000,-500.0,0.00026147,2]
[424361544,1780783836000,-500.0,0.00026147,2]
[424361552,1780783836000,-500.0,0.00026147,2]
[424361554,1780783836000,-500.0,0.00026147,2]
[424361556,1780783836000,-500.0,0.00026147,2]
[424361555,1780783836000,-500.0,0.00026147,2]
[424361549,1780783836000,-500.0,0.00026147,2]
[424361584,1780783837000,-151.0,0.00019752,2]
[424361581,1780783837000,-151.0,0.00014986,2]